Cogmind - Beta 17 @@@ ROGUE MODE // 2026.07.18 @ 04:18:50 Player: TheSkyeDoctor Result: Destroyed by Y-45 Defender with Heavy Assault Rifle Performance ------------- Evolutions (2) 1000 Regions Visited (3) 600 Robots Destroyed (55) 275 Value Destroyed (1279) 1279 Prototype IDs (2) 40 Alien Tech Used (0) 0 Bonus (0) 0 TOTAL SCORE: 3194 Bonus ------- None Cogmind --------- Core Integrity 0/550 Matter 125/300 Energy 94/100 System Corruption 0% Temperature Cool (9) Movement Core (1450) Ox28 Location -8/Materials Parts ------- > --- POWER (1) -------- (None) > --- PROPULSION (4) --- (None) > --- UTILITY (2) ------ Huge Storage Unit Light Armor Plating > --- WEAPON (4) ------- Gauss Rifle > --- INVENTORY (25) --- Improved Heat Sink Huge Storage Unit Large Battery (200) Signal Interpreter Improved Terrain Scanner Weapon Cycler Light Armor Plating Dynamic Insulation System Recalibrator Rocket Launcher Plasma Cutter Peak State ------------ > --- POWER ------------ Heavy Ion Engine > --- PROPULSION ------- Improved Treads Improved Treads Improved Treads Improved Treads > --- UTILITY ---------- Huge Storage Unit Targeting Computer > --- WEAPON ----------- Heavy EM Shotgun Particle Gun Heavy Assault Rifle Autogun > --- INVENTORY -------- Improved Ion Engine Light Treads Light Treads Light Treads Light Treads Improved Treads Wheel Improved Heat Sink Huge Storage Unit Large Battery Signal Interpreter Improved Terrain Scanner Weapon Cycler Light Armor Plating Light Armor Plating Dynamic Insulation System Recalibrator Small Laser Grenade Launcher Rocket Launcher Rocket Launcher Plasma Cutter [Rating: 27] Favorites ----------- Power Light Ion Engine Engine Light Ion Engine Propulsion Light Treads Treads Light Treads Wheel Wheel Utility Targeting Computer Device Seismic Detector Storage Huge Storage Unit Processor Targeting Computer Protection Light Armor Plating Weapon Medium Laser Energy Gun Medium Laser Energy Cannon Heavy Particle Cannon Ballistic Gun Autogun Launcher Rocket Launcher Build | -11 -10 -9 -8 ------- Run | Yrd Mat Mat Mat Slots Evolved 4 | . . 2 2 Power . | . . . . Propulsion 2 | . . . 2 Utility . | . . . . Weapon 2 | . . 2 . Parts Attached 37 | 7 5 13 12 Power 5 | 1 1 3 . Engine 5 | 1 1 3 . Core . | . . . . Reactor . | . . . . Propulsion 13 | 2 . 6 5 Treads 12 | 2 . 6 4 Leg . | . . . . Wheel 1 | . . . 1 Hover . | . . . . Flight . | . . . . Utility 7 | 2 3 1 1 Device 1 | 1 . . . Storage 4 | 1 2 1 . Processor 1 | . 1 . . Hackware . | . . . . Protection 1 | . . . 1 Artifact . | . . . . Weapon 12 | 2 1 3 6 Energy Gun 4 | 1 1 1 1 Energy Cannon 1 | . . . 1 Ballistic Gun 4 | 1 . 1 2 Ballistic Cannon . | . . . . Launcher 3 | . . 1 2 Special Weapon . | . . . . Impact Weapon . | . . . . Slashing Weapon . | . . . . Piercing Weapon . | . . . . Special Melee Weapon . | . . . . Unidentified Prototypes 2 | . . 1 1 Parts Lost 27 | . 3 5 19 Power 5 | . 1 2 2 Propulsion 11 | . . 2 9 Utility 2 | . 1 . 1 Weapon 9 | . 1 1 7 Highest Loss Streak 17 | . 2 2 17 To Critical Strikes . | . . . . Average Backups 10 | 1 6 11 17 Power . | . . . . Propulsion 2 | . 1 3 4 Utility 4 | . 3 5 8 Weapon 1 | . . 2 2 Tool/Special . | . . . . Unused Backups 10 | . . . 10 Power . | . . . . Propulsion . | . . . . Utility 9 | . . . 9 Weapon . | . . . . Tool/Special 1 | . . . 1 Average Slot Usage (%) 88 | . 100 84 82 Engine 8 | . 14 6 8 Treads 26 | . 28 21 32 Device 2 | . 7 . . Storage 11 | . 14 11 9 Processor 9 | . 6 11 8 Energy Gun 21 | . 19 29 11 Ballistic Gun 7 | . 8 4 12 Peak Build Rating 27 | 7 8 17 27 Average Rating 11 | 6 7 11 18 On Entrance 8 | . 7 8 17 Avg Prop Armor Cover (%) . | . . . . Naked Turns . | . . . . Heaviest Build 98 | 12 46 95 98 Greatest Support 92 | 40 40 46 92 Greatest Overweight (x) 26 | . 1 2 26 Average Overweight (x) . | . . 1 1 Largest Inventory Capacity 25 | 8 20 25 25 Average Capacity 18 | 7 13 23 25 Most Carried 23 | 3 9 20 23 Average Carried 10 | 1 6 11 17 Final Capacity 25 | 8 20 25 25 Final Carried 19 | 3 8 19 11 Class Distribution -------------------- 51% | Gunner 48% | Mutant Dominant Class ---------------- Mutant | -10/Materials Gunner | -9/Materials Gunner | -8/Materials Resources | -11 -10 -9 -8 ----------- Run | Yrd Mat Mat Mat Matter Collected 858 | 299 72 264 223 Remotely . | . . . . Salvage Created 1700 | 184 341 603 572 Parts 121 | 18 23 39 41 Haulers Intercepted 3 | . 2 1 . Recyclers Shooed . | . . . . Parts Field Recycled . | . . . . Retrieved Matter . | . . . . Parts Self-Destructed . | . . . . Prevented . | . . . . Parts Restored . | . . . . Kills | -11 -10 -9 -8 ------- Run | Yrd Mat Mat Mat Combat Hostiles Destroyed 31 | . 9 11 11 Guns 24 | . 9 11 4 Cannons 3 | . . . 3 AOE 4 | . . . 4 Classes Destroyed 12 | 3 3 3 3 Worker 7 | 1 1 1 4 Builder 2 | . . . 2 Tunneler 8 | 7 . 1 . Hauler 3 | . 2 1 . Recycler 2 | 1 . 1 . Mechanic 1 | . . . 1 Watcher 1 | . . 1 . Swarmer 6 | . 6 . . Grunt 20 | . 3 7 10 Duelist 1 | . . 1 . Sentry 3 | . . 3 . Hunter 1 | . . . 1 Best Kill Streak 7 | 3 6 7 7 Combat Bots Only 5 | . 5 3 5 Max Kills in Single Turn 4 | 1 2 2 4 Gunslinging 1 | . . 1 . Exploded 2 | . . . 2 Melee . | . . . . Uniques/NPCs Destroyed . | . . . . Combat | -11 -10 -9 -8 -------- Run | Yrd Mat Mat Mat Hostile Shots Fired 301 | . 80 46 175 Missed 61 | . 19 12 30 Hits 240 | . 61 34 145 Melee 4 | . . 4 . Projectile 236 | . 61 30 145 Critical Strikes 14 | . 2 . 12 Damage Taken 3544 | . 590 558 2396 Core 731 | . 102 75 554 Absorbed by Shields . | . . . . Core Remaining (%) 80 | 100 59 81 . Volleys Fired 150 | 29 49 28 44 Largest 4 | 2 2 4 3 Hottest 178 | 70 90 178 111 Shots Fired 332 | 58 98 89 87 Gun 312 | 58 98 87 69 Cannon 12 | . . . 12 Launcher 8 | . . 2 6 Special . | . . . . Kinetic 149 | 29 47 15 58 Thermal 175 | 29 51 72 23 Explosive 8 | . . 2 6 Electromagnetic . | . . . . Robot Hit Streak 16 | 9 7 16 15 Robot Miss Streak 5 | 4 5 4 2 Penetration Max 1 | . . . 1 Secondary Targets 4 | . 2 2 . Max Gunslinging Chain 2 | . 1 2 . Shots Hit Robots 214 | 35 55 59 65 Core Hits 100 | 15 20 28 37 Critical Kills . | . . . . Critical Parts Destroyed . | . . . . Critical Strikes 6 | 2 3 1 . Burn 6 | 2 3 1 . Melee Attacks . | . . . . Impact . | . . . . Slashing . | . . . . Piercing . | . . . . Sneak Attacks . | . . . . Combat Hostiles . | . . . . Follow-up Attacks . | . . . . Damage Inflicted 3488 | 376 574 937 1601 Guns 2586 | 374 574 782 856 Cannons 200 | . . . 200 Explosions 700 | . . 155 545 Melee . | . . . . Ramming 2 | 2 . . . Kinetic 1244 | 139 225 136 744 Thermal 1542 | 235 349 646 312 Explosive 700 | . . 155 545 Electromagnetic . | . . . . Impact . | . . . . Slashing . | . . . . Piercing . | . . . . Highest Corruption . | . . . . Average Corruption . | . . . . Corruption Purged . | . . . . Corruption Blocked . | . . . . Overload Shots . | . . . . Overflow Damage 45 | . . . 45 Projectiles . | . . . . Explosions 45 | . . . 45 Melee . | . . . . Knockbacks . | . . . . Impact . | . . . . Kinetic . | . . . . Secondary . | . . . . Self-Inflicted Damage 131 | . . 40 91 Shots 4 | . . 1 3 Rammed . | . . . . Targets Rammed 1 | 1 . . . Kicked . | . . . . Crushed 1 | 1 . . . Highest Temperature 590 | 130 269 413 590 Average Temperature 114 | 40 82 146 174 Received Heat Transfer 1467 | . 162 162 1143 Effects 5 | . . 2 3 Energy Bleed 1 | . . . 1 Interference 2 | . . 1 1 Matter Decay 2 | . . 1 1 Siege Activations . | . . . . Martial Activations . | . . . . Shielding Activations . | . . . . Robots Disrupted . | . . . . Combat Hostiles . | . . . . Robots Corrupted . | . . . . Combat Hostiles . | . . . . Parts Fried . | . . . . Impact Corruptions . | . . . . Robots Melted . | . . . . Combat Hostiles . | . . . . Parts Melted 7 | 1 3 3 . Heat Transferred 4338 | 851 1246 1683 558 Parts Sabotaged . | . . . . Parts Stolen . | . . . . Parts Stripped . | . . . . Power Chain Reactions . | . . . . Alert | -11 -10 -9 -8 ------- Run | Yrd Mat Mat Mat Maximum Alert Level . | . . . . Low Security (%) 100 | 100 100 100 100 Level 1 . | . . . . Level 2 . | . . . . Level 3 . | . . . . Level 4 . | . . . . Level 5 . | . . . . High Security . | . . . . Max Security . | . . . . Peak Influence 162 | 5 96 162 132 Initial 26 | . . . 26 Average 29 | . 32 44 20 Influence Increases 1023 | 45 254 372 352 Destroy 0b10 Robot/C 620 | . 180 220 220 Destroy 0b10 Robot/NC 120 | 45 15 25 35 Destroy Leader 168 | . 44 84 40 Disable Machine 30 | . . 30 . Destroy Structure 55 | . . 13 42 Lose Combat Pursuer 30 | . 15 . 15 Influence Decreases 927 | 45 254 310 318 Entered New Map 36 | . . . 36 Time Decay 651 | 45 224 280 102 Lost Part 240 | . 30 30 180 Squads Dispatched 6 | . 1 3 2 Investigation 2 | . 1 1 . Extermination . | . . . . Reinforcement 4 | . . 2 2 Assault . | . . . . Garrison . | . . . . Intercept . | . . . . Searches Triggered . | . . . . Construction Impeded 1 | . . . 1 Haulers Reinforced . | . . . . Active Scanning Responses . | . . . . Cargo Convoy Interrupts . | . . . . Stealth | -11 -10 -9 -8 --------- Run | Yrd Mat Mat Mat Distress Signals 5 | . 1 2 2 Communications Jammed . | . . . . Distress Signals . | . . . . Times Spotted 49 | . 14 16 19 Peak Tracking Total 7 | . 5 4 7 Tactical Retreats 2 | . 1 . 1 Traps | -11 -10 -9 -8 ------- Run | Yrd Mat Mat Mat Traps Triggered 2 | . 1 1 . Indirectly . | . . . . Trap Hack Attempts . | . . . . Triggered . | . . . . Disarmed . | . . . . Reprogrammed . | . . . . Reused . | . . . . Traps Extracted . | . . . . Installed . | . . . . Triggered . | . . . . Machines | -11 -10 -9 -8 ---------- Run | Yrd Mat Mat Mat Machines Disabled 2 | . . 2 . Max in Single Turn 1 | . . 1 . Machines Repaired . | . . . . Machines Dismantled . | . . . . Machines Sabotaged . | . . . . Overloaded Fab Kills . | . . . . Hacking | -11 -10 -9 -8 --------- Run | Yrd Mat Mat Mat Machines Accessed 6 | . 1 4 1 Terminals 5 | . 1 3 1 Fabricators . | . . . . Repair Stations . | . . . . Recycling Units . | . . . . Scanalyzers 1 | . . 1 . Garrison Access . | . . . . Total Hacks 8 | . 1 6 1 Successful 3 | . . 3 . Failed 4 | . 1 2 1 Catastrophic 2 | . 1 . 1 Database Lockouts 1 | . . 1 . Manual 2 | . . 1 1 Terminals 6 | . 1 4 1 Fabricators . | . . . . Repair Stations . | . . . . Recycling Units . | . . . . Scanalyzers 2 | . . 2 . Garrison Access . | . . . . Terminal Hacks 1 | . . 1 . Maintenance Status 1 | . . 1 . Fabricator Hacks . | . . . . Repair Station Hacks . | . . . . Recycling Unit Hacks . | . . . . Scanalyzer 1 | . . 1 . Retrieve Study 1 | . . 1 . Garrison Access Hacks . | . . . . Unauthorized Hacks 1 | . . 1 . Terminals 1 | . . 1 . Botnet 1 | . . 1 . Fabricators . | . . . . Repair Stations . | . . . . Recycling Units . | . . . . Scanalyzers . | . . . . Garrison Access . | . . . . Data Cores Recovered . | . . . . Used . | . . . . Hacking Detections 3 | . 1 1 1 Full Trace Events . | . . . . Feedback Events . | . . . . Feedback Blocked . | . . . . Robot Schematics Acquired . | . . . . Robots Built . | . . . . Authchips . | . . . . Time . | . . . . Total Robot Build Rating . | . . . . Part Schematics Acquired . | . . . . Parts Built . | . . . . Authchips . | . . . . Time . | . . . . Total Part Build Rating . | . . . . Part Studies Acquired 1 | . . 1 . Parts Repaired . | . . . . Time . | . . . . Parts Recycled . | . . . . Recycled Matter . | . . . . Retrieved Matter . | . . . . Retrieved Components . | . . . . Parts Scanalyzed . | . . . . Part Schematics Acquired . | . . . . Parts Damaged . | . . . . Bothacking | -11 -10 -9 -8 ------------ Run | Yrd Mat Mat Mat Used RIF Installer . | . . . . Robots Hacked . | . . . . Non-combat . | . . . . Combat . | . . . . Robot Hacks Applied . | . . . . Relay Couplers Released . | . . . . Fabnet Peak Effective % . | . . . . Robots Rewired . | . . . . Allies Hacked . | . . . . Hacks Repelled . | . . . . Allies | -11 -10 -9 -8 -------- Run | Yrd Mat Mat Mat Total Allies . | . . . . Largest Group . | . . . . Highest-Rated Group . | . . . . Highest-Rated Ally . | . . . . Total Orders . | . . . . Ally Attacks . | . . . . Total Damage . | . . . . Kills . | . . . . Allies Corrupted . | . . . . Allies Melted . | . . . . Intel | -11 -10 -9 -8 ------- Run | Yrd Mat Mat Mat Active Infowar (turns) 672 | 320 352 . . Seismic 672 | 320 352 . . Robot Analysis Total . | . . . . Derelict Logs Recovered . | . . . . Drone Launches . | . . . . Drone Recoveries . | . . . . Exploration | -11 -10 -9 -8 ------------- Run | Yrd Mat Mat Mat Turns Passed 2666 | 427 654 1049 536 Spaces Moved 999 | 209 267 368 155 Core 3 | 2 . . 1 Treads 992 | 207 267 368 150 Legs . | . . . . Wheels 4 | . . . 4 Hover . | . . . . Flight . | . . . . Fastest Speed 50 | 50 160 200 160 Average Speed 214 | 158 187 252 242 Slowest Speed 1350 | 160 240 320 1350 Overloaded Moves . | . . . . Propulsion Burnouts . | . . . . Robots Hopped . | . . . . Potential Cave-ins . | . . . . Cave-ins Triggered . | . . . . Exploration Rate (%) 27 | 10 52 32 16 Regions Visited 3 Branch Regions . Pre-discovered Areas . | . . . . Known Exits Taken . | . . . . Unknown Exits Taken 3 | 1 1 1 . Scrap Searched . | . . . . Spaces Dug . | . . . . Terrain Destroyed 70 | . . 11 59 Melee . | . . . . Projectile 4 | . . . 4 AOE 66 | . . 11 55 Terrain Rammed . | . . . . Walls Destroyed . | . . . . Machines Disabled . | . . . . Actions | -11 -10 -9 -8 --------- Run | Yrd Mat Mat Mat Total 1245 | 248 332 423 242 Wait 16 | . 3 . 13 Move 996 | 208 266 367 155 Hop . | . . . . Pick Up 23 | 3 7 8 5 Fast Attach 18 | 7 1 7 3 Attach 18 | . 2 1 15 Detach 6 | . . 2 4 Swap 10 | . 2 7 1 Drop 7 | . 2 3 2 Fire 150 | 29 49 28 44 Melee . | . . . . Ram . | . . . . Kick . | . . . . Crush 1 | 1 . . . Escape Stasis . | . . . . Rewire . | . . . . Trap . | . . . . Miscellaneous . | . . . . Route ------- -11/Scrapyard -10/Materials -9/Materials -8/Materials History --------- Turn | Location | Event 2 | -11/Scrapyard | Met Revision 17 6 | -11/Scrapyard | Discovered new exit (range 15) 428 | -11/Scrapyard | Entered Materials 429 | -10/Materials | Build established: Mutant 998 | -10/Materials | Discovered new exit (range 15) 1082 | -10/Materials | Entered another Materials area 1082 | -9/Materials | Evolved 2 slots: Weapon x2 1350 | -9/Materials | Central database locked down 1410 | -9/Materials | Build established: Gunner 1707 | -9/Materials | Discovered new exit (range 16) 2131 | -9/Materials | Entered another Materials area 2131 | -8/Materials | Evolved 2 slots: Propulsion x2 2641 | -8/Materials | Core integrity fell below 50% 2656 | -8/Materials | Core integrity fell below 20% 2667 | -8/Materials | Destroyed by Y-45 Defender with Heavy Assault Rifle Last Messages --------------- 02647_ U-05 Engineer lays Concrete. 02647_ M-13 Machinist repairs G-47 Trooper. 02648_ U-05 Engineer lays Concrete. 02648_ K-01 Serf collects debris. 02649_ M-13 Machinist repairs G-47 Trooper Aluminum Leg. 02649_ U-05 Engineer destroyed. 02651_ K-01 Serf collects debris. 02655_ Targeting Computer destroyed. 02655_ Critical hit (Burn: +37). 02655_ K-01 Serf collects debris. 02658_ Critical hit (Burn: +37). 02659_ K-01 Serf collects debris. 02659_ Acquired Gauss Rifle. 02663_ K-01 Serf collects debris. 02664_ Slug penetrates K-01 Serf. 02664_ K-01 Serf destroyed. 02666_ Slug penetrates G-47 Trooper. 02666_ G-47 Trooper destroyed. 02666_ M-13 Machinist destroyed. Map ----- +----------------------------------------------------+ | ????????????????????????????????????????????????# | | ????????????????????????????????????????????????# | | ????????????????????????????????????????????????# | | ???????????????????????????????????????########## | | ???????????????????????????????????????# !# | | ???????????????????????????????????????# """ # | | ???????????????????????????????????????# """ # | | ???????????????????????????????????????# """ # | | ???????????????????????????????????????# # | | ???????????????????????????????????????# # | | ???????????????????????????????????????# ""T"" + | | ???????????????????????????????????????# """"" # | | ??????????????????????????????######???# # | | ????????????????????????????### #??########## | | ????????????????????????????? ##?######### | | ?????????????????????????????? " | | ?????????????????????????????? #??######### | | ??????????????????????????????? /########???# | | ???????????????????????????????# ##!!!!!!#???# | | ???????????????????????????????# ##! ! !#?##### | | ???????????????????????????????# ## #?# | | ???????????????????????????###?# ### ### | | ??????????????????????##### ### ### + | | ??????????????????????# [ # ! ## # | | ??????????????######### * [ = *## # | | ????????????# |= @ | =%![ =!%! + | | ????????????#k ### #[%!#%* ! =##+####### | | ???????????????????# %=%=# % ## #??# | | ???????????????????# ==! [ # ##" #??##### | | ???????????????????# [!= # ##"T #??????? | | ???????????????????# !%|%## # # ##"" #??????? | | ???????????????????#! !=+ # #??????? | | ???????????????????# Y%! ##### # #??????? | | ???????????????????##+##/## #???# # #??????? | | ???????????????????? ? ?? #???# # = #??????? | | ??????????????????? ? ??##???# # #??????? | | ?????????????????? ? ???????? ? ######??????? | | ?????????????????? ? ???????? ????????????? | | ??????????????????? ? ###???????? ?????????????? | | ????????????????????? ??????????? ?????????????? | | ???????????????????? ??????????? ?????????????? | | ???????????????????? ???????????? ?????????????? | | ???????????????????[ ???????????? ?????????????? | | ??????????????????? ?????????????????????????????? | | ?????????????????????????????????????????????????? | | ?????????????????????????????????????????????????? | | ?????????????????????????????????????????????????? | | ?????????????????????????????????????????????????? | | ?????????????????????????????????????????????????? | | ?????????????????????????????????????????????????? | +----------------------------------------------------+ Best States ------------- Heat Dissipation 31 Energy Generation 14 Energy Capacity 280 Matter Stores 300 Matter Capacity 300 Sight Range 16 Terrain Scan Density 10 Evasion (%) 40 Targeting Accuracy 5 Recoil Reduction 4 Item Schematics ----------------- None Robot Schematics ------------------ None Fabricated ------------ Nothing Repaired ---------- Nothing Studied --------- Lgt. Treads | -9/Materials | Hacked Alien Tech Used ----------------- None Achievements -------------- None Challenges ------------ None Game ------ Seed EfficiencyCommKinecellerator Manual? 0 Play Time 00:13:13 Cumulative 131.3 hours Start 2026.07.18 @ 04:06:29 End 2026.07.18 @ 04:18:50 Sessions 1 Manual Loads 0 Difficulty Rogue Special Mode None Game No. 275 Rogue 275 Adventurer 0 Explorer 0 Win Type - Total 1 Types 1/0/0/0/0/0/0/0/0/0 Lore% 53 Gallery% 54 Achievement% 43 Wizard Run 0 Options --------- Layout 2 ASCII 0 Keyboard 1 Movement Arrows Keybinds 0 Fullscreen 1 Font 24/Smallcaps Map View 50x44 Zoom Use 0% Tactical HUD 1 Map Filters NONE Filters NONE Steam 1 RUN: c1541cf0-fa51-47d3-a5c9-17ea5a7e256b